bitfinex/quotes_SOLUSD_20260306
["timestamp","ask_amount","ask_price","bid_price","bid_amount"]
[1772795954760,4.0743492,87.82,87.786,0.69979214]
[1772795955651,39.85470114,87.819,87.788,0.69979214]
[1772795956056,0.61544794,87.818,87.788,0.02369536]
[1772795957665,11.3873168,87.817,87.788,0.02369536]
[1772795957868,12.00056933,87.817,87.788,0.02369536]
[1772795959563,0.60893707,87.816,87.788,0.02369536]
[1772795960173,0.60893707,87.816,87.774,0.63877048]
[1772795962649,0.60893707,87.816,87.769,0.28432314]
[1772795962650,0.60475736,87.814,87.776,0.63877048]
[1772795963364,11.38757615,87.815,87.776,0.63877048]
[1772795965584,11.38757615,87.815,87.778,0.63877048]
[1772795967046,0.60493703,87.815,87.779,11.39224643]
[1772795967250,0.60493703,87.815,87.78,0.63877048]
[1772795968589,0.60493703,87.815,87.781,0.14216157]
[1772795968766,0.60497173,87.828,87.784,0.63877048]
[1772795969285,0.60500604,87.826,87.786,0.63877048]
[1772795971168,0.60507347,87.824,87.788,0.63877048]
[1772795974885,11.38653883,87.823,87.79,0.65621897]
[1772795975494,42.0,87.838,87.791,0.79838054]
[1772795975495,0.60526667,87.836,87.791,0.79838054]
[1772795977686,0.60532815,87.834,87.793,0.79838054]
[1772795979883,4.07397887,87.84,87.778,0.65621897]
[1772795979884,0.60541775,87.832,87.778,0.65621897]
[1772795980076,0.60541775,87.819,87.775,0.65621897]
[1772795981486,0.60541775,87.819,87.765,0.14216157]
[1772795981487,0.60544693,87.817,87.777,0.65621897]
[1772795983671,11.38744647,87.816,87.779,0.65621897]
[1772795985686,0.60556035,87.815,87.779,0.65621897]
[1772795985885,0.60556035,87.813,87.781,0.65621897]
[1772795987993,0.60556035,87.813,87.78,11.39211665]
[1772795987994,0.60564204,87.828,87.783,0.65621897]
[1772795990496,0.60569494,87.826,87.785,0.65621897]
[1772795993891,0.60579716,87.824,87.787,0.65621897]
[1772795994875,0.60579716,87.819,87.787,0.65621897]
[1772795997298,0.60587078,87.817,87.787,0.65621897]
[1772795999784,0.60591847,87.815,87.789,0.65621897]
[1772796001583,11.38744647,87.816,87.789,0.65621897]
[1772796001783,11.38744647,87.816,87.791,0.60546176]
[1772796003201,0.60603296,87.815,87.791,0.60546176]
[1772796003907,0.60605508,87.813,87.791,0.60546176]
[1772796005387,11.38770583,87.814,87.791,0.60546176]
[1772796006920,11.38770583,87.814,87.792,0.60546176]
[1772796007885,11.38576096,87.829,87.794,0.60546176]
[1772796008092,0.60614103,87.846,87.794,0.60546176]
[1772796008298,0.60614103,87.839,87.794,0.60546176]
[1772796008700,0.60614103,87.829,87.794,0.60546176]
[1772796009105,0.60614103,87.829,87.788,11.39095139]
[1772796009106,0.60616191,87.819,87.788,0.60546176]
[1772796009705,0.60616191,87.819,87.789,11.39094875]
[1772796009887,0.60616191,87.819,87.789,11.99641051]
[1772796010524,0.60618254,87.817,87.79,0.60546176]
[1772796011324,11.38718713,87.818,86.473,3.49]
[1772796011325,0.60553979,87.809,87.764,0.74762333]
[1772796011629,39.85515497,87.818,87.764,0.74762333]
[1772796011630,0.60553979,87.799,87.764,0.60546176]
[1772796012914,0.60490572,87.797,87.766,0.60546176]
[1772796015308,4.07397887,87.8,87.745,0.14216157]
[1772796015309,0.60303995,87.795,87.768,0.60546176]
[1772796018724,0.60124161,87.793,87.77,0.60546176]
[1772796018930,0.60124161,87.793,87.765,11.39405641]
[1772796019122,0.60124161,87.793,87.766,0.60546176]
[1772796022822,11.3905595,87.792,87.767,11.39380404]
[1772796023017,11.3905595,87.792,87.768,0.60546176]
[1772796024014,0.59782575,87.791,87.768,0.60546176]
[1772796024918,0.59727924,87.789,87.757,11.39501694]
[1772796025112,0.59727924,87.789,87.76,11.59463657]
[1772796025325,0.59727924,87.789,87.761,0.60546176]
[1772796028632,0.59727924,87.789,87.76,11.59463657]
[1772796028633,0.5956839,87.779,87.76,0.2]
[1772796029031,0.5956839,87.779,87.761,0.60546176]
[1772796030018,11.98637432,87.783,87.761,0.60546176]
[1772796030415,0.594647,87.782,87.761,0.60546176]
[1772796031331,0.594647,87.782,87.763,0.60546176]
[1772796031530,0.59413698,87.791,87.763,0.60546176]
[1772796032315,11.38965136,87.799,87.765,0.60515092]
[1772796032531,0.59264588,87.798,87.765,0.60515092]
[1772796033035,11.38965136,87.799,87.765,0.60515092]
[1772796033036,0.59216657,87.789,87.765,0.60515092]
[1772796033816,0.59216657,87.789,87.761,0.60515092]
[1772796034036,0.59168526,87.779,87.76,0.2]
[1772796035533,0.59168526,87.779,87.761,0.60515092]
[1772796035737,11.39211507,87.781,87.761,0.60515092]
[1772796036329,11.39152463,87.785,87.762,0.60515092]
[1772796037830,11.3905595,87.792,87.764,0.60515092]
[1772796038227,11.38900277,87.804,87.764,0.60515092]
[1772796038422,0.58981412,87.805,87.764,0.60515092]
[1772796038423,42.58981412,87.812,87.764,0.60515092]
[1772796038617,11.38809488,87.811,87.764,0.60515092]
[1772796038822,11.38705747,87.819,87.766,0.60515092]
[1772796039039,29.05416396,87.828,87.768,0.60515092]
[1772796039353,29.05416396,87.828,87.781,0.14216157]
[1772796039531,29.05416396,87.828,87.784,0.60515092]
[1772796039854,11.38651658,87.824,87.786,0.60515092]
[1772796040837,11.38515241,87.834,87.788,0.60515092]
[1772796041030,11.38515241,87.834,87.789,0.14216157]
[1772796041228,11.38515241,87.834,87.794,0.60515092]
[1772796041627,28.45828709,87.848,87.786,0.42648471]
[1772796041628,0.58847458,87.846,87.795,0.60515092]
[1772796041946,0.588032,87.849,87.805,0.60515092]
[1772796043146,0.58758895,87.847,87.807,0.60515092]
[1772796045348,0.28432314,87.873,87.794,0.14216157]
[1772796045349,0.58673178,87.839,87.809,0.60515092]
[1772796048645,11.38459436,87.838,87.809,0.60515092]
[1772796048828,0.58547721,87.837,87.809,0.60515092]
[1772796049143,0.58547721,87.837,87.811,0.60515092]
[1772796049451,0.58547721,87.837,87.804,28.47237328]
[1772796049452,0.58547721,87.837,87.805,0.60515092]
[1772796050929,0.58427135,87.845,87.807,0.60515092]
[1772796052952,11.38381676,87.844,87.809,0.60515092]
[1772796053129,0.58348138,87.843,87.809,0.60515092]
[1772796054134,11.38381676,87.844,87.809,0.60515092]
[1772796055951,0.58233039,87.851,87.811,0.60515092]
[1772796058853,0.58158355,87.849,87.813,0.60515092]
[1772796061765,0.58014824,87.847,87.815,0.61257609]
[1772796062057,0.58014824,87.847,87.814,11.38770583]
[1772796062563,0.58014824,87.847,87.814,12.00028192]
[1772796063052,0.58014824,87.847,87.815,0.61257609]
[1772796064640,0.57911527,87.845,87.817,0.61257609]
[1772796067753,0.57911527,87.845,87.816,11.38744647]
[1772796067754,0.57811665,87.843,87.819,0.61257609]
[1772796068161,11.38381676,87.844,87.819,0.61257609]
[1772796068948,11.38305198,87.85,87.819,0.61257609]
[1772796071164,11.38213232,87.857,87.821,0.61257609]
[1772796071360,0.57450987,87.875,87.823,0.61257609]
[1772796073859,0.56676024,87.873,87.826,0.61257609]
[1772796074065,0.56676024,87.873,87.834,0.61257609]
[1772796076570,0.56174404,87.871,87.836,0.61257609]
[1772796077061,39.83066277,87.872,87.836,0.61257609]
[1772796077259,0.559276,87.871,87.836,0.61257609]
[1772796079860,39.83156935,87.87,87.836,0.61257609]
[1772796080165,0.55203942,87.869,87.836,0.61257609]
[1772796081966,39.83247598,87.868,87.836,0.61257609]
[1772796082276,0.54735468,87.867,87.836,0.61257609]
[1772796084874,0.54052708,87.865,87.836,0.61257609]
[1772796087583,39.83428935,87.864,87.836,0.61257609]
[1772796087766,0.5361053,87.863,87.836,0.61257609]
[1772796089482,56.89738099,87.878,87.836,0.61257609]
[1772796089483,40.3669873,87.862,87.836,0.61257609]
[1772796090111,39.8351961,87.862,87.836,0.61257609]
[1772796090764,28.4537115,87.862,87.836,0.61257609]
[1772796091156,0.52756826,87.861,87.836,0.61257609]
[1772796091475,28.4537115,87.862,87.81,0.42648471]
[1772796091476,0.61158344,87.859,87.81,0.42648471]
[1772796091680,28.4537115,87.862,87.792,11.3905595]
[1772796091681,0.57097833,87.849,87.792,11.3905595]
[1772796091862,0.57097833,87.849,87.796,0.42648471]
[1772796093385,0.62280823,87.847,87.803,0.60560644]
[1772796095462,0.62280823,87.845,87.803,0.60560644]
[1772796095777,0.62280823,87.845,87.805,0.60560644]
[1772796097384,0.62280823,87.845,87.794,3.83599559]
[1772796097385,0.62280823,87.837,87.791,25.8164901]
[1772796097601,0.62280823,87.837,87.792,0.14216157]
[1772796098774,0.62280823,87.837,87.792,11.53272107]
[1772796099280,0.62280823,87.837,87.793,0.60560644]
[1772796099487,0.62280823,87.835,87.795,0.60560644]
[1772796102481,0.62280823,87.833,87.797,0.60560644]
[1772796104992,0.62280823,87.829,87.792,0.60560644]
[1772796106191,0.62280823,87.829,87.793,0.60560644]
[1772796107874,0.62280823,87.827,87.793,0.60560644]
[1772796108075,0.62280823,87.827,87.795,0.60560644]
[1772796110396,11.38614988,87.826,87.796,11.39004054]
[1772796110584,0.62280823,87.825,87.797,0.60560644]
[1772796111482,0.62280823,87.825,87.791,14.42584616]
[1772796111885,0.62280823,87.825,87.791,25.81647607]
[1772796112395,0.62280823,87.825,87.791,14.42584616]
[1772796112622,0.62280823,87.823,87.791,25.81647737]
[1772796113481,0.62280823,87.823,87.792,0.11615024]
[1772796115082,39.8533397,87.822,87.792,0.11615024]
[1772796115281,0.62280823,87.821,87.791,14.42584616]
[1772796117803,0.62280823,87.819,87.793,0.11507433]
[1772796118003,11.38446475,87.839,87.793,0.60560644]
[1772796118190,39.84562664,87.839,87.793,0.60560644]
[1772796119192,96.76795043,87.839,87.793,0.60560644]
[1772796120128,0.62280823,87.838,87.795,0.60560644]
[1772796120408,0.62280823,87.829,87.795,0.60560644]
[1772796120604,0.62280823,87.829,87.791,14.42584616]
[1772796120813,0.62280823,87.829,87.792,0.60560644]
[1772796121220,0.62280823,87.829,87.794,0.60560644]
[1772796121909,0.58455421,87.827,87.792,11.3905595]
[1772796122113,0.58455421,87.819,87.792,11.3905595]
[1772796122313,0.58455421,87.819,87.791,14.42584616]
[1772796123416,0.58455421,87.809,87.791,14.42584616]
[1772796124208,0.58455421,87.807,87.791,14.42584616]
[1772796124597,11.38802861,87.812,87.792,0.60778568]
[1772796125411,11.97258282,87.812,87.792,0.60778568]
[1772796125712,0.58455421,87.811,87.792,0.60778568]
[1772796126492,11.38822457,87.81,87.791,14.42584616]
[1772796126714,0.58455421,87.809,87.769,0.60778568]
[1772796129005,0.58455421,87.807,87.771,0.60778568]
[1772796131811,0.58455421,87.805,87.773,0.60778568]
[1772796133925,56.93257103,87.824,87.764,0.60778568]
[1772796133926,0.58455421,87.803,87.764,0.60778568]
[1772796134308,0.58455421,87.799,87.764,0.60778568]
[1772796136732,0.58455421,87.797,87.766,0.60778568]
[1772796139022,0.58455421,87.795,87.768,0.60778568]
[1772796140332,11.39004054,87.796,87.768,0.60778568]
[1772796140838,0.58455421,87.801,87.77,0.60778568]
[1772796143218,0.58455421,87.799,87.769,11.39354441]
[1772796145826,0.58455421,87.797,87.765,0.60778568]
[1772796148950,0.58455421,87.795,87.767,0.60778568]
[1772796151335,0.58455421,87.793,87.768,12.00145991]
[1772796152047,0.58455421,87.793,87.768,0.60778568]
[1772796153651,0.54959038,87.799,87.768,0.60778568]
[1772796153833,42.0,87.821,87.76,0.2]
[1772796153834,0.54959038,87.803,87.77,0.58775939]
[1772796155052,0.54959038,87.801,87.772,0.58775939]
[1772796157856,0.54959038,87.799,87.774,0.58775939]
[1772796160540,11.38952164,87.8,87.776,0.58775939]
[1772796161332,0.54959038,87.799,87.776,0.58775939]
[1772796162940,0.54959038,87.797,87.777,11.392506]
[1772796163148,0.54959038,87.797,87.778,0.58775939]
[1772796164260,0.54959038,87.797,87.78,0.58775939]
[1772796164441,11.39004054,87.796,87.78,0.58775939]
[1772796164642,11.39004054,87.796,87.763,11.39425965]
[1772796164643,0.54959038,87.795,87.763,11.39425965]
[1772796164842,0.54959038,87.789,87.763,11.39425965]
[1772796167245,0.54959038,87.787,87.763,11.39425965]
[1772796168971,0.54959038,87.785,87.763,11.39425965]
[1772796169771,0.54959038,87.785,87.763,11.98201904]
[1772796170950,0.54959038,87.785,87.764,0.58775939]
[1772796171764,11.39159755,87.784,87.766,0.58775939]
[1772796171966,0.54959038,87.785,87.766,0.58775939]
[1772796172155,11.39154678,87.785,87.766,0.58775939]
[1772796172463,0.54959038,87.784,87.766,0.58775939]
[1772796174666,0.54959038,87.782,87.761,0.58775939]
[1772796175566,0.54959038,87.782,87.762,11.39444317]
[1772796175757,0.54959038,87.782,87.763,0.58775939]
[1772796178166,0.54959038,87.78,87.76,0.2]
[1772796180368,0.54959038,87.778,87.761,0.58775939]
[1772796180678,0.54959038,87.778,87.76,0.2]
[1772796181448,0.54959038,87.769,87.729,0.58775939]
[1772796181650,0.54710714,87.759,87.738,11.39747246]
[1772796182470,0.54710714,87.758,87.738,11.39747246]
[1772796183050,0.54710714,87.758,87.733,0.54479204]
[1772796183051,28.47964001,87.783,87.742,0.54479204]
[1772796183250,7.89581546,87.801,87.745,0.54479204]
[1772796183472,4.0761786,87.8,87.753,0.54479204]
[1772796185370,0.54710714,87.789,87.755,0.54479204]
[1772796190470,0.54710714,87.779,87.756,11.39523223]
[1772796191186,0.54710714,87.769,87.74,0.74479204]
[1772796191480,0.54710714,87.759,87.74,0.2]
[1772796192283,11.39497253,87.758,87.74,0.2]
[1772796192483,0.54710714,87.757,87.74,0.2]
[1772796194795,0.54710714,87.77,87.742,0.54479204]
[1772796195489,11.94054374,87.77,87.742,0.54479204]
[1772796195972,0.54710714,87.769,87.742,0.54479204]
[1772796196875,0.54710714,87.769,87.743,11.39692055]
[1772796197079,0.54710714,87.769,87.744,0.54479204]
[1772796199887,0.54710714,87.769,87.745,11.39666077]
[1772796200388,0.54710714,87.767,87.745,11.39666077]
[1772796203090,0.54710714,87.767,87.74,0.2]
[1772796203091,0.54710714,87.765,87.74,11.59722274]
[1772796203394,0.54710714,87.765,87.741,0.54479204]
[1772796205174,0.54710714,87.765,87.743,0.54479204]
[1772796206576,0.54710714,87.764,87.74,0.2]
[1772796207090,0.54710714,87.759,87.74,0.2]
[1772796208398,0.54710714,87.749,87.717,0.54479204]
[1772796208603,0.54710714,87.739,87.714,11.40060088]
[1772796209189,0.54710714,87.739,87.716,0.54479204]
[1772796209589,0.54710714,87.729,87.695,0.54479204]
[1772796209777,0.54710714,87.729,87.67,0.2]
[1772796209778,0.54710714,87.709,87.683,0.54479204]
[1772796210794,0.54710714,87.707,87.684,0.54479204]
[1772796211095,4.0761786,87.7,87.684,0.54479204]
[1772796211483,11.95453727,87.708,87.68,0.2]
[1772796211686,11.95453727,87.708,87.69,0.75163429]
[1772796214085,11.95453727,87.708,87.68,0.2]
[1772796214086,0.54555869,87.699,87.68,0.2]
[1772796214804,0.54555869,87.689,87.67,0.73874298]
[1772796215198,0.54555869,87.689,87.671,0.53874298]
[1772796215507,11.40375326,87.691,87.671,0.53874298]
[1772796215884,11.4019885,87.704,87.672,0.53874298]
[1772796217100,0.54555869,87.699,87.674,0.53874298]
[1772796219003,11.4019885,87.704,87.674,0.53874298]
[1772796219304,11.4019885,87.704,87.676,0.53874298]
[1772796219510,0.54555869,87.703,87.676,0.53874298]
[1772796220088,11.4019885,87.704,87.676,0.53874298]
[1772796221409,0.54555869,87.704,87.677,11.40549973]
[1772796221591,0.54555869,87.704,87.678,0.53874298]
[1772796221986,6.82281106,87.72,87.679,0.53874298]
[1772796222191,11.40016872,87.718,87.679,0.53874298]
[1772796222505,11.94572741,87.718,87.679,0.53874298]
[1772796223912,11.94572741,87.718,87.681,0.53874298]
[1772796224320,0.54555869,87.717,87.681,0.53874298]
[1772796227924,11.40042865,87.716,87.683,0.53874298]
[1772796228504,0.54555869,87.717,87.683,0.53874298]
[1772796228816,6.27725237,87.72,87.683,0.53874298]
[1772796230516,0.54555869,87.718,87.675,0.53874298]
[1772796232102,6.82281106,87.72,87.678,0.14216157]
[1772796232303,0.54555869,87.718,87.683,0.53874298]
[1772796232933,0.54555869,87.716,87.685,0.53874298]
[1772796235134,0.54555869,87.714,87.679,0.53874298]
[1772796237536,0.54555869,87.712,87.681,0.53874298]
[1772796237740,11.40081857,87.713,87.681,0.53874298]
[1772796238835,0.54555869,87.715,87.664,0.14216157]
[1772796238836,0.54555869,87.715,87.683,0.53874298]
[1772796239915,11.94622801,87.715,87.685,0.53874298]
[1772796240825,0.54555869,87.714,87.685,0.53874298]
[1772796242041,11.40081857,87.713,87.687,0.55282147]
[1772796243545,11.40081857,87.713,87.672,28.51518096]
[1772796243546,0.58724378,87.718,87.689,0.55282147]
[1772796245332,0.58724378,87.716,87.691,0.55282147]
[1772796248443,6.27725237,87.72,87.693,0.55282147]
[1772796250550,6.27725237,87.72,87.695,0.55282147]
[1772796251934,6.27725237,87.72,87.697,0.55282147]
[1772796256254,6.27725237,87.72,87.699,0.55282147]
[1772796259660,6.27725237,87.72,87.701,0.55282147]
[1772796260162,11.39879354,87.729,87.701,0.55282147]
[1772796261153,0.58724378,87.737,87.703,0.55282147]
[1772796261449,11.39471285,87.76,87.706,0.69498304]
[1772796261637,0.58724378,87.759,87.712,0.55282147]
[1772796261838,0.58724378,87.759,87.723,0.14216157]
[1772796262060,0.58724378,87.759,87.724,0.55282147]
[1772796262654,0.58724378,87.769,87.734,0.55282147]
[1772796263556,0.58724378,87.768,87.736,0.55282147]
[1772796264852,0.58724378,87.786,87.738,0.55282147]
[1772796265050,0.58724378,87.785,87.744,0.55282147]
[1772796265557,0.58724378,87.785,87.754,0.55282147]
[1772796266860,11.39159755,87.784,87.754,0.55282147]
[1772796267746,11.39159755,87.784,87.755,11.39536208]
[1772796267951,11.97823461,87.789,87.756,0.55282147]
[1772796268541,0.58724378,87.788,87.756,0.55282147]
[1772796271765,0.57193344,87.803,87.76,4.23179249]
[1772796271967,0.57193344,87.803,87.757,39.88285834]
[1772796271968,0.57193344,87.803,87.761,0.42648471]
[1772796272147,11.95766967,87.809,87.774,0.55599895]
[1772796272567,11.38887746,87.805,87.774,0.55599895]
[1772796273158,11.38952164,87.8,87.774,0.55599895]
[1772796273463,11.38952164,87.8,87.752,1.13957516]
[1772796273464,0.56928156,87.779,87.712,11.40094855]
[1772796273664,11.39237622,87.778,87.717,11.40029868]
[1772796273966,0.56928156,87.777,87.72,3.69383402]
[1772796274667,0.56928156,87.777,87.721,0.42648471]
[1772796275252,0.56928156,87.777,87.726,0.55599895]
[1772796275447,0.56928156,87.777,87.734,0.55599895]
[1772796279769,0.56928156,87.769,87.729,0.14216157]
[1772796280151,0.56928156,87.769,87.731,11.39843573]
[1772796280357,0.56928156,87.769,87.732,0.14216157]
[1772796280576,0.56928156,87.769,87.732,0.69816052]
[1772796280777,0.56928156,87.769,87.733,0.55599895]
[1772796282559,0.56928156,87.767,87.734,11.39808968]
[1772796284466,11.39393386,87.766,87.734,11.39808968]
[1772796284664,0.56928156,87.765,87.734,11.39808968]
[1772796284876,0.56928156,87.765,87.735,0.55599895]
[1772796286976,0.56928156,87.765,87.732,0.14216157]
[1772796286977,0.56928156,87.763,87.737,0.55599895]
[1772796288985,0.56928156,87.761,87.737,0.55599895]
[1772796289560,39.88058613,87.762,87.714,0.14216157]
[1772796289561,0.56928156,87.759,87.717,0.28432314]
[1772796289757,0.56928156,87.759,87.719,0.55599895]
[1772796292184,0.56928156,87.757,87.723,0.14216157]
[1772796292379,0.56928156,87.757,87.724,0.55599895]
[1772796294679,0.56928156,87.739,87.711,7.73869619]
[1772796294882,0.56928156,87.739,87.711,19.13973015]
[1772796295683,0.56928156,87.739,87.712,0.55599895]
[1772796298490,39.88331281,87.756,87.714,0.55599895]
[1772796298491,0.56928156,87.747,87.714,0.55599895]
[1772796301999,11.39653089,87.746,87.716,0.56657118]
[1772796302190,0.56892698,87.752,87.716,0.56657118]
[1772796304979,0.56892698,87.75,87.718,0.56657118]
[1772796306387,0.56892698,87.749,87.718,0.56657118]
[1772796307201,0.56892698,87.747,87.712,12.1096813]
[1772796307882,0.56892698,87.747,87.713,0.56657118]
[1772796311000,0.56892698,87.745,87.715,0.56657118]
[1772796312086,0.56892698,87.745,87.714,11.4006886]
[1772796313100,0.56892698,87.739,87.714,11.4006886]
[1772796314907,0.56892698,87.737,87.714,11.4006886]
[1772796315407,0.56892698,87.737,87.715,0.56657118]
[1772796317004,0.56892698,87.735,87.715,0.56657118]
[1772796317196,0.56892698,87.735,87.714,11.4006886]
[1772796317603,0.56892698,87.735,87.715,0.56657118]
[1772796318704,0.56892698,87.735,87.714,11.4006886]
[1772796318910,0.56892698,87.735,87.715,0.56657118]
[1772796319906,0.56892698,87.735,87.716,11.40042865]
[1772796320108,0.56892698,87.735,87.716,11.96699983]
[1772796320503,0.56892698,87.735,87.716,11.40042865]
[1772796320705,0.56892698,87.735,87.717,0.56657118]
[1772796321213,0.56892698,87.733,87.717,0.56657118]
[1772796323626,0.56892698,87.739,87.719,0.56657118]
[1772796323918,0.56892698,87.739,87.718,11.40016872]
[1772796324099,0.56892698,87.739,87.714,11.96723814]
[1772796325424,0.56892698,87.737,87.715,0.56657118]
[1772796328631,0.56892698,87.742,87.717,0.56657118]
[1772796330930,56.96068859,87.78,87.718,0.56657118]
[1772796331127,4.08034331,87.76,87.718,0.56657118]
[1772796332230,39.88194942,87.759,87.719,11.40003876]
[1772796332530,39.88194942,87.759,87.72,0.52354756]
[1772796332925,0.55663161,87.758,87.72,0.52354756]
[1772796334440,0.55663161,87.748,87.719,11.40003876]
[1772796335717,0.55663161,87.746,87.719,0.52354756]
[1772796336123,11.39640101,87.747,87.719,0.52354756]
[1772796337037,0.55663161,87.747,87.72,11.3999088]
[1772796337241,0.55663161,87.747,87.721,0.52354756]
[1772796338618,0.55663161,87.747,87.72,11.3999088]
[1772796339234,0.55663161,87.747,87.711,7.73869619]
[1772796339235,4.08034331,87.74,87.717,0.52354756]
[1772796339541,0.55663161,87.739,87.717,0.52354756]
[1772796341447,0.55663161,87.745,87.719,0.52354756]
[1772796342543,11.39653089,87.746,87.719,0.52354756]
[1772796342747,0.55663161,87.739,87.713,11.40073998]
[1772796343747,0.55663161,87.737,87.713,11.92428754]
[1772796345049,0.55663161,87.737,87.714,0.52354756]
[1772796346438,0.55663161,87.735,87.714,0.52354756]
[1772796346947,0.55663161,87.735,87.715,11.40055862]
[1772796347143,0.55663161,87.735,87.716,0.52354756]
[1772796347854,11.39689085,87.744,87.716,0.52354756]
[1772796348051,0.55663161,87.747,87.716,0.52354756]
[1772796348350,0.55663161,87.762,87.717,0.14216157]
[1772796348652,0.55663161,87.762,87.724,0.52354756]
[1772796349829,11.39458301,87.761,87.725,39.89740666]
[1772796350133,11.39458301,87.761,87.726,0.52354756]
[1772796351938,0.55663161,87.762,87.728,0.52354756]
[1772796353046,0.55663161,87.762,87.73,0.52354756]
[1772796354444,0.55663161,87.759,87.73,0.52354756]
[1772796354657,0.55663161,87.749,87.729,11.39873929]
[1772796355031,0.55663161,87.747,87.725,0.52354756]
[1772796360666,0.55663161,87.747,87.726,11.3991291]
[1772796360843,0.55663161,87.747,87.727,0.52354756]
[1772796361761,0.54345424,87.745,87.727,0.52354756]
[1772796361943,0.54345424,87.745,87.722,0.5702428]
[1772796362640,11.39679066,87.744,87.717,11.97044424]
[1772796362958,0.54345424,87.743,87.717,11.97044424]
[1772796363163,0.54345424,87.743,87.718,0.5702428]
[1772796363753,28.48960363,87.752,87.719,11.40003876]
[1772796363754,11.39705044,87.742,87.719,11.40003876]
[1772796364065,0.54345424,87.741,87.72,0.5702428]
[1772796364764,0.54345424,87.758,87.72,0.5702428]
[1772796367880,11.93855662,87.757,87.722,0.5702428]
[1772796368159,0.54345424,87.756,87.722,0.5702428]
[1772796370359,56.96438322,87.775,87.723,11.39951894]
[1772796370360,0.54345424,87.749,87.723,11.39951894]
[1772796370757,0.54345424,87.749,87.724,0.5702428]
[1772796370959,0.54345424,87.754,87.724,0.5702428]
[1772796373957,0.54345424,87.752,87.726,0.5702428]
[1772796376579,0.54345424,87.75,87.728,0.5702428]
[1772796379686,11.9395955,87.749,87.73,0.5702428]
[1772796379878,0.54345424,87.748,87.73,0.5702428]
[1772796380887,0.54345424,87.753,87.731,11.39847944]
[1772796381072,0.54345424,87.753,87.732,0.5702428]
[1772796382483,0.54345424,87.753,87.713,28.50177271]
[1772796382484,0.54345424,87.753,87.714,0.5702428]
[1772796382679,0.54345424,87.749,87.714,0.5702428]
[1772796382895,0.54345424,87.749,87.714,11.9709314]
[1772796383079,0.54345424,87.747,87.715,0.5702428]
[1772796383783,0.54345424,87.767,87.715,0.5702428]
[1772796384876,0.54345424,87.766,87.717,0.5702428]
[1772796385576,0.54345424,87.777,87.721,0.14216157]
[1772796385779,0.54345424,87.775,87.736,0.5702428]
[1772796385977,0.54345424,87.775,87.744,0.5702428]
[1772796388675,0.54345424,87.775,87.746,0.5702428]
[1772796389791,0.54345424,87.775,87.748,0.5702428]
[1772796392095,0.54345424,87.775,87.75,0.56446442]
[1772796394293,0.54345424,87.775,87.734,0.14216157]
[1772796394294,0.56375514,87.784,87.752,0.56446442]
[1772796395501,0.56375514,87.784,87.754,0.56446442]
[1772796398000,0.56375514,87.784,87.756,0.56446442]
[1772796399402,0.56375514,87.79,87.758,0.56446442]
[1772796400905,0.56375514,87.79,87.762,0.14216157]
[1772796401081,0.56375514,87.79,87.763,0.56446442]
[1772796402610,7.60182297,87.791,87.763,0.56446442]
[1772796403013,0.56375514,87.801,87.765,0.56446442]
[1772796404399,0.56375514,87.799,87.767,0.56446442]
[1772796405212,0.1,87.81,87.77,0.14216157]
[1772796405440,0.66375514,87.81,87.773,0.56446442]
[1772796406014,0.1,87.81,87.777,0.56446442]
[1772796406194,0.1,87.81,87.785,0.56446442]
[1772796406517,0.56375514,87.832,87.788,39.86877476]
[1772796406695,0.56375514,87.799,87.758,11.39497253]
[1772796406895,0.56375514,87.799,87.758,39.88240387]
[1772796407409,0.56375514,87.799,87.759,0.28432314]
[1772796408617,0.56375514,87.797,87.762,0.56446442]
[1772796411625,0.56375514,87.795,87.764,0.56446442]
[1772796416517,0.56375514,87.793,87.765,11.39406369]
[1772796416824,0.56375514,87.793,87.765,39.87922292]
[1772796417122,0.56375514,87.793,87.766,0.56446442]
[1772796418803,0.56375514,87.793,87.767,11.39380404]
[1772796419005,0.56375514,87.793,87.767,11.95826846]
[1772796420024,0.56375514,87.793,87.768,0.56446442]
[1772796421211,0.56375514,87.793,87.769,11.39354441]
[1772796421411,0.56375514,87.793,87.77,0.56446442]
[1772796421621,0.53804352,87.791,87.764,11.94286444]
[1772796422120,0.53804352,87.791,87.765,0.54879743]
[1772796423813,0.53804352,87.796,87.767,0.54879743]
[1772796424532,0.53804352,87.796,87.766,11.39393386]
[1772796424926,0.53804352,87.796,87.767,0.54879743]
[1772796426229,0.53804352,87.796,87.769,0.54879743]
[1772796427033,11.39000522,87.797,87.769,0.54879743]
[1772796427245,0.53804352,87.801,87.769,0.54879743]
[1772796427246,11.92746557,87.801,87.769,0.54879743]
[1772796427741,0.53804352,87.8,87.769,0.54879743]
[1772796428439,0.53804352,87.818,87.772,0.54879743]
[1772796430731,39.85560881,87.817,87.773,11.39302518]
[1772796430937,4.07688592,87.81,87.774,0.54879743]
[1772796431114,0.53804352,87.809,87.774,0.54879743]
[1772796433345,0.53804352,87.807,87.775,11.39276559]
[1772796434543,0.53804352,87.814,87.776,0.54879743]
[1772796434922,0.53804352,87.809,87.771,11.39325056]
[1772796435128,0.53804352,87.799,87.771,11.39325056]
[1772796435742,0.53804352,87.797,87.764,0.54879743]
[1772796438026,0.53804352,87.789,87.745,0.54879743]